Workbook

Sheet Sheet1
A1: 附件：
A2: 遵义职业技术学院2025年赴高校引才成绩总排名
A3: 序号 | B3: 姓名 | C3: 笔试准考证号 | D3: 面试准考证号 | E3: 报考岗位 | F3: 笔试成绩 | G3: 面试成绩 | H3: 折算总成绩 | I3: 是否进入下一环节
A4: 1 | B4: 吴秀涓 | C4: 250100214 | D4: =VLOOKUP(B4,[1]Sheet1!B$2:H$15,7,FALSE) -> 5200201 | E4: 思想政治部（基础教育部）教师 | F4: 77.79 | G4: =VLOOKUP(B4,[1]Sheet1!B$2:I$15,8,FALSE) -> 83.00 | H4: =F4*0.5+G4*0.5 -> 80.40 | I4: 是
A5: 2 | B5: 杨彤 | C5: 250100201 | D5: =VLOOKUP(B5,[1]Sheet1!B$2:H$15,7,FALSE) -> 5200202 | E5: 思想政治部（基础教育部）教师 | F5: 74.76 | G5: =VLOOKUP(B5,[1]Sheet1!B$2:I$15,8,FALSE) -> 79.60 | H5: 77.18
A6: 3 | B6: 王银凤 | C6: 250100127 | D6: =VLOOKUP(B6,[1]Sheet1!B$2:H$15,7,FALSE) -> 5200203 | E6: 思想政治部（基础教育部）教师 | F6: 70.98 | G6: =VLOOKUP(B6,[1]Sheet1!B$2:I$15,8,FALSE) -> 81.60 | H6: 76.29
A7: 4 | B7: 杨爱明 | C7: 250100113 | D7: =VLOOKUP(B7,[1]Sheet1!B$2:H$15,7,FALSE) -> 5200205 | E7: 思想政治部（基础教育部）教师 | F7: 68.99 | G7: =VLOOKUP(B7,[1]Sheet1!B$2:I$15,8,FALSE) -> 82.20 | H7: 75.60
A8: 5 | B8: 涂媛媛 | C8: 250100124 | D8: =VLOOKUP(B8,[1]Sheet1!B$2:H$15,7,FALSE) -> 5200204 | E8: 思想政治部（基础教育部）教师 | F8: 70.47 | G8: =VLOOKUP(B8,[1]Sheet1!B$2:I$15,8,FALSE) -> 79.80 | H8: 75.14
A9: 6 | B9: 胡宏 | C9: 250100306 | D9: =VLOOKUP(B9,[1]Sheet1!B$2:H$15,7,FALSE) -> 5200117 | E9: 专职辅导员1 | F9: 58.67 | G9: =VLOOKUP(B9,[1]Sheet1!B$2:I$15,8,FALSE) -> 81.20 | H9: 69.94 | I9: 是
A10: 7 | B10: 彭旭 | C10: 250100304 | D10: =VLOOKUP(B10,[1]Sheet1!B$2:H$15,7,FALSE) -> 5200116 | E10: 专职辅导员1 | F10: 59.81 | G10: =VLOOKUP(B10,[1]Sheet1!B$2:I$15,8,FALSE) -> 77.00 | H10: 68.41
A11: 8 | B11: 敖选鹏 | C11: 250100307 | D11: =VLOOKUP(B11,[1]Sheet1!B$2:H$15,7,FALSE) -> 5200119 | E11: 专职辅导员1 | F11: 55.89 | G11: =VLOOKUP(B11,[1]Sheet1!B$2:I$15,8,FALSE) -> 79.60 | H11: 67.75
A12: 9 | B12: 国宏远 | C12: 250100305 | D12: 5200118 | E12: 专职辅导员1 | F12: 57.48 | G12: 76.80 | H12: 67.14
A13: 10 | B13: 杨海玲 | C13: 250100505 | D13: =VLOOKUP(B13,[1]Sheet1!B$2:H$15,7,FALSE) -> 5200127 | E13: 专职辅导员2 | F13: 73.11 | G13: =VLOOKUP(B13,[1]Sheet1!B$2:I$15,8,FALSE) -> 81.00 | H13: 77.06 | I13: 是
A14: 11 | B14: 韩桥英 | C14: 250100311 | D14: =VLOOKUP(B14,[1]Sheet1!B$2:H$15,7,FALSE) -> 5200129 | E14: 专职辅导员2 | F14: 71.14 | G14: =VLOOKUP(B14,[1]Sheet1!B$2:I$15,8,FALSE) -> 82.20 | H14: 76.67
A15: 12 | B15: 姚雯竞 | C15: 250100421 | D15: =VLOOKUP(B15,[1]Sheet1!B$2:H$15,7,FALSE) -> 5200125 | E15: 专职辅导员2 | F15: 73.23 | G15: =VLOOKUP(B15,[1]Sheet1!B$2:I$15,8,FALSE) -> 78.60 | H15: 75.92
A16: 13 | B16: 方银银 | C16: 250100310 | D16: =VLOOKUP(B16,[1]Sheet1!B$2:H$15,7,FALSE) -> 5200128 | E16: 专职辅导员2 | F16: 72.52 | G16: =VLOOKUP(B16,[1]Sheet1!B$2:I$15,8,FALSE) -> 79.20 | H16: 75.86
A17: 14 | B17: 陈婷 | C17: 250100507 | D17: =VLOOKUP(B17,[1]Sheet1!B$2:H$15,7,FALSE) -> 5200126 | E17: 专职辅导员2 | F17: 73.23 | G17: =VLOOKUP(B17,[1]Sheet1!B$2:I$15,8,FALSE) -> 78.40 | H17: 75.82
